bitfinex-derivatives/quotes_SOLF0:USTF0_20241215
["timestamp","ask_amount","ask_price","bid_price","bid_amount"]
[1734297448854,6.22994023,219.53,219.48,2.2786]
[1734297449051,2.08,219.52,219.48,2.2786]
[1734297450361,6.22994023,219.51,219.44,6.22994023]
[1734297450565,2.08,219.52,219.37,6.31478999]
[1734297450566,6.22994023,219.47,219.37,6.31478999]
[1734297450859,2.08,219.46,219.36,2.08]
[1734297451063,2.08,219.46,219.43,2.2792]
[1734297452055,2.08,219.46,219.41,2.2793]
[1734297452859,2.08,219.46,219.38,6.22994023]
[1734297453056,2.08,219.46,219.42,2.2793]
[1734297453759,6.22994023,219.45,219.38,6.22994023]
[1734297453964,6.22994023,219.45,219.41,2.2794]
[1734297454966,2.08,219.46,219.42,2.2793]
[1734297455266,2.08,219.46,219.42,2.2792]
[1734297456962,19.10992094,219.57,219.37,18.94436997]
[1734297457165,19.10992094,219.57,219.33,5.60531504]
[1734297457166,6.22994023,219.38,219.33,5.60531504]
[1734297457366,2.12,219.37,219.33,5.60531504]
[1734297458061,2.12,219.36,219.33,5.60531504]
[1734297458565,2.12,219.38,219.34,6.22994023]
[1734297458766,2.12,219.39,219.36,2.2798]
[1734297459269,2.12,219.39,219.35,6.22994023]
[1734297459466,2.12,219.39,219.37,2.2797]
[1734297459871,2.12,219.39,219.35,8.50984023]
[1734297460566,2.12,219.39,219.35,6.22994023]
[1734297460771,2.12,219.39,219.36,2.2799]
[1734297461371,2.12,219.39,219.33,5.60531504]
[1734297461571,2.12,219.39,219.33,11.83525527]
[1734297462570,2.12,219.39,219.35,2.28]
[1734297466579,2.12,219.4,219.37,6.22994023]
[1734297466874,2.12,219.41,219.37,6.22994023]
[1734297467072,2.12,219.41,219.39,2.2796]
[1734297470080,2.12,219.41,219.37,2.2798]
[1734297471682,2.12,219.41,219.38,2.2797]
[1734297472577,2.12,219.41,219.35,6.22994023]
[1734297473883,2.12,219.41,219.36,2.2799]
[1734297474185,6.22994023,219.38,219.33,5.60531504]
[1734297474885,8.50974023,219.38,219.33,7.88551504]
[1734297475284,8.50974023,219.38,219.33,5.60531504]
[1734297475583,2.2799,219.37,219.33,5.60531504]
[1734297475784,2.12,219.36,219.33,5.60531504]
[1734297475980,8.34994023,219.36,219.33,5.60531504]
[1734297476181,10.62994023,219.36,219.32,0.48038]
[1734297477181,2.2803,219.33,219.32,0.48038]
[1734297477786,6.22994023,219.34,219.25,2.281]
[1734297477980,6.22994023,219.32,219.25,2.281]
[1734297478179,2.12,219.31,219.25,2.281]
[1734297478488,2.12,219.31,219.26,5.53123144]
[1734297479884,6.22994023,219.3,219.23,2.2812]
[1734297480085,4.4005,219.31,219.23,6.22994023]
[1734297480283,10.63044023,219.31,219.23,6.22994023]
[1734297480984,1.5021,219.38,219.27,6.22994023]
[1734297480985,2.12,219.3,219.27,6.22994023]
[1734297481191,2.12,219.3,219.25,5.39645336]
[1734297481192,2.12,219.32,219.29,6.22994023]
[1734297481788,2.12,219.32,219.27,6.22994023]
[1734297482090,2.12,219.32,219.28,6.22994023]
[1734297483191,2.12,219.32,219.31,2.2805]
[1734297483489,6.22994023,219.37,219.31,2.2805]
[1734297483691,2.12,219.36,219.31,2.2805]
[1734297484188,1.4836,219.49,219.3,6.22994023]
[1734297484384,6.22994023,219.4,219.34,2.2801]
[1734297484583,2.12,219.39,219.34,2.2801]
[1734297486188,6.22994023,219.38,219.34,2.2801]
[1734297486385,6.22994023,219.38,219.32,2.2803]
[1734297486593,6.22994023,219.38,219.3,6.22994023]
[1734297487185,6.22994023,219.38,219.34,2.2801]
[1734297489187,6.22994023,219.35,219.3,2.2805]
[1734297489585,6.22994023,219.35,219.28,6.22994023]
[1734297489791,6.22994023,219.35,219.31,2.2804]
[1734297490791,2.12,219.39,219.28,6.22994023]
[1734297490991,6.22994023,219.37,219.3,6.22994023]
[1734297492093,6.22994023,219.37,219.33,2.2802]
[1734297494596,6.22994023,219.37,219.31,7.81959025]
[1734297494893,6.22994023,219.35,219.31,7.81959025]
[1734297495191,6.22994023,219.33,219.21,6.31478999]
[1734297495396,6.22994023,219.29,219.22,6.22994023]
[1734297495600,8.34994023,219.29,219.22,6.22994023]
[1734297495796,8.34994023,219.29,219.26,2.281]
[1734297496098,8.34994023,219.29,219.22,6.22994023]
[1734297496395,8.34994023,219.29,219.26,2.2809]
[1734297497193,8.34994023,219.29,219.27,5.36438255]
[1734297497594,8.34994023,219.29,219.24,2.2811]
[1734297498298,6.22994023,219.27,219.23,2.2813]
[1734297499897,4.4007,219.29,219.23,2.2813]
[1734297500202,6.22994023,219.27,219.23,2.2813]
[1734297500395,6.22994023,219.27,219.19,6.22994023]
[1734297501295,6.22994023,219.27,219.24,5.39250958]
[1734297503707,2.2805,219.31,219.24,5.39250958]
[1734297503905,8.34994023,219.3,219.24,5.39250958]
[1734297504811,8.34994023,219.3,219.25,2.2811]
[1734297505012,10.63054023,219.3,219.25,2.2811]
[1734297506410,8.51074023,219.28,219.24,5.39250958]
[1734297507112,2.2812,219.24,219.17,6.22994023]
[1734297507415,2.12,219.23,219.17,6.22994023]
[1734297507712,2.12,219.22,219.17,6.22994023]
[1734297508020,2.12,219.22,219.19,5.58582286]
[1734297508212,2.12,219.22,219.19,7.86752286]
[1734297508411,2.12,219.22,219.19,11.81576309]
[1734297508611,2.12,219.28,219.21,6.22994023]
[1734297508811,2.12,219.28,219.19,5.58582286]
[1734297509016,2.12,219.28,219.21,6.22994023]
[1734297509309,2.12,219.28,219.24,2.2811]
[1734297509510,2.12,219.28,219.23,6.22994023]
[1734297510115,2.12,219.28,219.25,2.2811]
[1734297510414,8.34994023,219.28,219.2,2.9658]
[1734297510607,8.34994023,219.28,219.21,6.22994023]
[1734297510914,8.34994023,219.28,219.23,2.2812]
[1734297511312,6.22994023,219.26,219.2,2.9658]
[1734297511610,6.22994023,219.26,219.2,5.2473]
[1734297511915,6.22994023,219.26,219.2,2.2815]
[1734297512917,6.22994023,219.26,219.19,5.58582286]
[1734297513112,6.22994023,219.24,219.19,7.86752286]
[1734297513608,2.12,219.23,219.19,7.86752286]
[1734297514822,2.12,219.23,219.2,2.2816]
[1734297515114,2.12,219.23,219.2,6.22994023]
[1734297515415,2.12,219.26,219.2,6.22994023]
[1734297515607,2.12,219.26,219.19,5.58582286]
[1734297515608,6.22994023,219.24,219.19,5.58582286]
[1734297517315,2.12,219.26,219.19,5.58582286]
[1734297517514,6.22994023,219.25,219.19,5.58582286]
[1734297517820,2.12,219.24,219.19,5.58582286]
[1734297519418,2.12,219.24,219.19,7.86742286]
[1734297520212,6.22994023,219.23,219.17,2.2819]
[1734297520715,6.22994023,219.21,219.14,3.0001]
[1734297521520,6.22994023,219.21,219.16,2.282]
[1734297522116,6.22994023,219.21,219.14,3.0001]
[1734297522312,6.22994023,219.21,219.15,2.2821]
[1734297522814,6.22994023,219.17,219.05,25.25915996]
[1734297523019,2.12,219.16,219.07,6.22994023]
[1734297523314,92.0,219.13,218.98,6.22994023]
[1734297523519,6.22994023,219.09,219.0,14.04826327]
[1734297523710,2.12,219.12,219.0,14.04826327]
[1734297523711,1.4575,219.22,219.0,5.53472304]
[1734297524017,6.22994023,219.14,219.05,6.22994023]
[1734297524214,6.22994023,219.12,219.07,2.2829]
[1734297524411,2.12,219.11,219.01,1.4316]
[1734297524618,6.22994023,219.1,219.01,7.66154023]
[1734297524919,6.22994023,219.1,219.02,6.22994023]
[1734297525322,2.12,219.11,219.04,6.22994023]
[1734297526013,2.12,219.11,219.06,2.283]
[1734297527919,2.12,219.11,219.04,2.2832]
[1734297528220,9.82540894,219.1,219.01,1.4316]
[1734297528811,9.82540894,219.1,219.0,5.53472304]
[1734297529217,9.82540894,219.04,218.88,6.31478999]
[1734297529415,2.12,219.03,218.89,3.0227]
[1734297529816,2.12,219.03,218.89,12.84810894]
[1734297530615,2.9212,219.09,218.96,5.48598143]
[1734297530818,2.12,219.08,218.96,5.48598143]
[1734297532212,2.12,219.08,219.02,2.2835]
[1734297532515,1.5076,219.09,219.02,2.2835]
[1734297532820,2.12,219.07,219.02,2.2835]
[1734297533015,1.5568,219.1,218.96,5.48598143]
[1734297533219,2.12,219.09,219.03,2.2833]
[1734297537323,2.12,219.09,218.98,1.5562]
[1734297537518,2.12,219.09,219.04,2.2833]
[1734297538124,2.12,219.09,218.98,1.5562]
[1734297538321,2.12,219.09,219.06,2.2831]
[1734297539017,12.10780894,219.13,219.06,2.2831]
[1734297539221,2.12,219.12,219.06,2.2831]
[1734297540326,2.12,219.11,219.07,2.2829]
[1734297541623,12.10780894,219.13,219.07,2.2829]
[1734297541924,2.12,219.1,219.07,2.2829]
[1734297542124,2.12,219.1,219.06,2.283]
[1734297542324,2.12,219.1,218.97,12.70450894]
[1734297542325,11.94540894,219.1,218.97,12.70450894]
[1734297542521,11.94540894,219.1,218.97,2.8791]
[1734297543324,2.2828,219.09,218.97,2.8791]
[1734297545526,2.2828,219.09,219.02,2.2834]
[1734297546425,11.94540894,219.1,218.97,2.8791]
[1734297546731,12.10840894,219.07,219.0,2.2836]
[1734297547726,12.10840894,219.07,219.01,2.2836]
[1734297547926,9.82540894,219.07,219.01,2.2836]
[1734297548323,9.82540894,219.07,218.97,2.8791]
[1734297548324,9.82540894,219.07,218.97,2.2839]
[1734297548629,11.33860894,219.07,218.97,2.2839]
[1734297548826,2.2833,219.04,218.98,2.2839]
[1734297549125,2.24,219.03,218.96,5.48598143]
[1734297550030,2.24,219.03,218.98,2.2839]
[1734297551629,2.24,219.03,218.97,2.284]
[1734297552031,6.29381272,219.02,218.97,2.284]
[1734297557334,2.2832,219.06,218.96,11.77979415]
[1734297557538,6.29381272,219.04,218.96,11.77979415]
[1734297557734,1.5108,219.09,219.0,6.29381272]
[1734297557935,58.4081,219.19,219.02,6.29381272]
[1734297558140,6.29381272,219.12,219.04,6.29381272]
[1734297559043,2.24,219.11,219.01,43.90177943]
[1734297559243,6.29381272,219.12,219.05,6.29381272]
[1734297559436,2.24,219.11,219.05,6.29381272]
[1734297560236,1.4272,219.18,219.09,6.29381272]
[1734297560441,2.24,219.17,219.09,6.29381272]
[1734297560644,2.24,219.16,219.09,6.29381272]
[1734297561544,2.24,219.16,219.11,2.2825]
[1734297561743,2.24,219.16,219.05,2.24]
[1734297561744,2.24,219.16,219.09,6.29381272]
[1734297561939,2.24,219.16,219.06,9.82029766]
[1734297563340,2.24,219.16,219.1,2.2826]
[1734297564335,2.24,219.16,219.05,2.24]
[1734297564537,9.82029766,219.15,219.01,9.82029766]
[1734297565540,2.2826,219.11,219.05,2.2831]
[1734297565746,2.24,219.1,219.05,7.82675781]
[1734297567344,9.82029766,219.09,218.99,4.3906]
[1734297567547,9.82029766,219.09,218.99,1.4274]
[1734297567754,9.82029766,219.09,218.94,0.52436]
[1734297568050,9.82029766,219.09,218.94,2.04686]
[1734297568451,2.2831,219.06,218.99,2.2838]
[1734297568647,2.24,219.05,218.99,2.2838]
[1734297570545,2.24,219.05,218.94,2.04686]
[1734297570852,9.82029766,219.03,218.96,5.48364721]
[1734297571352,2.2837,219.0,218.94,2.80866]
[1734297571543,2.24,218.99,218.94,0.52436]
[1734297573255,4.5238,218.99,218.94,0.52436]
[1734297574856,2.2836,219.01,218.94,0.52436]
[1734297575052,2.24,219.0,218.96,2.2841]
[1734297575552,2.24,219.0,218.92,2.2845]
[1734297575855,12.06029766,219.0,218.92,2.2845]
[1734297576054,12.06029766,219.0,218.9,2.2846]
[1734297576055,2.284,218.97,218.9,2.2846]
[1734297576449,2.284,218.97,218.86,12.75799766]
[1734297577054,2.284,218.97,218.9,5.48515054]
[1734297577454,2.284,218.97,218.9,7.76985054]
[1734297579155,2.284,218.97,218.86,12.75799766]
[1734297579156,9.82029766,218.97,218.86,2.9377]
[1734297579956,2.2843,218.94,218.87,2.2851]
[1734297580154,2.24,218.93,218.86,2.9377]
[1734297580351,4.5245,218.93,218.86,5.2229]
[1734297580655,2.24,218.93,218.86,8.37254205]
[1734297581348,2.24,218.92,218.86,8.37254205]
[1734297581555,2.284,218.98,218.86,8.37254205]
[1734297581752,2.24,218.97,218.86,8.37254205]
[1734297582953,4.524,218.97,218.86,8.37254205]
[1734297584460,4.524,218.97,218.9,2.2847]
[1734297586051,2.24,218.97,218.86,8.37254205]
[1734297586256,2.24,218.97,218.88,2.2849]
[1734297586257,2.2843,218.94,218.88,2.2849]
[1734297587059,2.2842,218.96,218.88,2.2849]
[1734297587252,12.06029766,218.97,218.88,2.2849]
[1734297588057,12.06029766,218.97,218.9,2.2847]
[1734297588265,12.06029766,218.97,218.86,8.37254205]
[1734297588465,2.24,218.96,218.86,8.37254205]
[1734297588960,1.5026,219.06,218.86,8.37254205]
[1734297588961,2.24,218.95,218.87,9.82029766]
[1734297589163,2.24,218.96,218.87,9.82029766]
[1734297589466,2.2835,219.02,218.96,2.2841]
[1734297589660,2.24,219.01,218.87,9.82029766]
[1734297590059,2.24,219.01,218.94,2.2842]
[1734297590060,4.5236,219.01,218.94,2.2842]
[1734297590260,2.2836,219.01,218.87,9.82029766]
[1734297590555,2.24,219.0,218.87,9.82029766]
[1734297591657,2.24,219.0,218.9,2.2846]
[1734297591863,2.24,219.0,218.87,9.82029766]
[1734297592658,2.24,219.0,218.95,2.2841]
[1734297593456,2.24,219.0,218.93,2.2843]
[1734297593660,2.24,219.0,218.88,9.82029766]
[1734297594459,2.24,219.0,218.94,2.2843]
[1734297595462,2.2838,218.99,218.92,2.2845]
[1734297597564,2.24,218.98,218.93,2.2844]
[1734297599958,2.24,218.98,218.91,2.2845]
[1734297599959,12.06029766,218.98,218.91,2.2845]
[1734297600365,12.06029766,218.98,218.86,8.37254205]
[1734297600561,2.2841,218.97,218.9,2.2847]
[1734297600757,12.06029766,218.98,218.9,2.2847]
[1734297601258,9.82029766,218.95,218.89,2.2848]
[1734297601660,12.10459766,218.95,218.86,6.88124205]
[1734297601858,9.82029766,218.95,218.88,2.2849]
[1734297602057,9.82029766,218.95,218.85,0.65937]
[1734297602259,9.82029766,218.92,218.85,0.65937]
[1734297602455,9.82029766,218.89,218.85,0.65937]
[1734297602658,2.24,218.88,218.85,0.65937]
[1734297602863,2.2851,218.87,218.85,0.65937]
[1734297603056,2.24,218.88,218.85,0.65937]
[1734297603265,9.82029766,218.86,218.75,5.53978024]
[1734297604570,9.82029766,218.86,218.79,2.2858]
[1734297604866,2.28,218.85,218.77,9.82029766]
[1734297605067,2.28,218.84,218.77,9.82029766]
[1734297605266,2.28,218.86,218.84,2.2854]
[1734297606970,2.28,218.86,218.82,2.2855]
[1734297607172,2.28,218.86,218.75,5.53978024]
[1734297607672,4.5652,218.86,218.78,2.286]
[1734297607867,4.5652,218.86,218.75,5.53978024]
[1734297608773,2.28,218.86,218.8,2.2858]
[1734297609862,2.3,218.85,218.83,2.2854]
[1734297610066,15.43359782,218.93,218.77,9.82029766]
[1734297610468,2.3,218.92,218.77,9.82029766]
[1734297610670,4.5845,218.92,218.85,2.2852]
[1734297611973,2.3,218.91,218.85,2.2852]
[1734297612173,9.82029766,218.9,218.75,5.53978024]
[1734297612372,9.82029766,218.9,218.83,2.2854]
[1734297612872,9.82029766,218.9,218.76,9.82029766]
[1734297613068,2.3,218.89,218.76,9.82029766]
[1734297613570,2.3,218.89,218.75,5.53978024]
[1734297613776,2.2851,218.87,218.8,2.2857]
[1734297614871,2.2852,218.86,218.8,2.2857]
[1734297615175,9.82029766,218.87,218.8,2.2857]
[1734297615778,12.10539766,218.87,218.8,2.2857]
[1734297616173,9.82029766,218.87,218.81,2.2857]
[1734297616373,1.5389,218.88,218.76,9.82029766]
[1734297616573,2.3,218.86,218.76,9.82029766]
[1734297616874,2.3,218.85,218.76,9.82029766]
[1734297618577,2.3,218.85,218.84,2.2854]
[1734297618879,2.3,218.85,218.76,9.82029766]
[1734297619076,2.3,218.85,218.75,5.53978024]
[1734297620178,2.3,218.85,218.81,2.2856]
[1734297621681,2.3,218.84,218.82,2.2856]
[1734297622478,2.3,218.84,218.8,2.2857]
[1734297623179,12.12029766,218.84,218.73,2.8776]
[1734297623379,2.2856,218.82,218.76,2.2861]
[1734297623584,12.12029766,218.84,218.76,2.2861]
[1734297624180,12.12029766,218.84,218.73,2.8776]
[1734297624382,9.82029766,218.84,218.74,5.45992604]
[1734297624583,2.3,218.83,218.74,5.45992604]
[1734297625097,2.2852,218.86,218.74,5.45992604]
[1734297625284,2.3,218.85,218.74,5.45992604]
[1734297626075,2.3,218.85,218.8,2.2857]
[1734297627977,2.3,218.85,218.74,5.45992604]
[1734297628178,2.2854,218.84,218.78,2.286]
[1734297629486,11.32139766,218.87,218.74,5.45992604]
[1734297629686,2.3,218.86,218.74,5.45992604]
[1734297629887,2.3,218.86,218.73,12.69789766]
[1734297630579,2.3,218.86,218.73,2.8776]
[1734297631089,9.82029766,218.81,218.71,1.5541]
[1734297631287,2.3,218.8,218.75,2.2863]
[1734297631983,2.3,218.8,218.74,5.51630983]
[1734297632590,2.3,218.8,218.76,2.2862]
[1734297633590,2.2856,218.82,218.76,2.2862]
[1734297633791,2.28,218.81,218.76,2.2862]
[1734297635194,2.28,218.81,218.71,1.5541]
[1734297635691,12.10029766,218.81,218.72,5.4677578]
[1734297635896,2.2858,218.8,218.72,7.7542578]
[1734297636097,12.10029766,218.81,218.72,5.4677578]
[1734297636495,12.10029766,218.81,218.75,2.2863]
[1734297636696,12.10029766,218.81,218.72,5.4677578]
[1734297637399,12.10029766,218.81,218.75,2.2862]
[1734297637798,12.10029766,218.81,218.72,5.4677578]
[1734297639797,12.10029766,218.81,218.75,2.2862]
[1734297639997,14.38599766,218.81,218.75,2.2862]
[1734297640589,12.10029766,218.81,218.68,9.35688999]
[1734297640794,2.2858,218.8,218.68,3.0421]
[1734297641398,2.2858,218.8,218.71,2.2867]
[1734297641597,2.2858,218.8,218.68,3.0421]
[1734297642496,2.2858,218.8,218.73,2.2865]
[1734297644093,6.30818025,218.76,218.73,2.2865]
[1734297644299,2.28,218.75,218.73,2.2865]
[1734297645595,2.28,218.75,218.72,2.2866]
[1734297646093,2.28,218.75,218.68,3.0421]
[1734297646094,6.30818025,218.74,218.68,3.0421]
[1734297646303,6.30818025,218.74,218.7,2.2867]
[1734297646599,6.30818025,218.74,218.68,3.0421]
[1734297647202,6.30818025,218.74,218.69,5.45887989]
[1734297647500,6.30818025,218.74,218.71,2.2867]
[1734297648599,2.2859,218.79,218.72,2.2866]
[1734297648799,6.30818025,218.76,218.69,5.45887989]
[1734297648999,2.28,218.75,218.69,5.45887989]
[1734297649299,2.28,218.75,218.74,2.2864]
[1734297649599,2.28,218.75,218.7,6.30818025]
[1734297651197,6.30818025,218.78,218.7,6.30818025]
[1734297651393,2.28,218.77,218.74,2.2864]
[1734297652803,2.28,218.77,218.75,2.2863]
[1734297653702,6.30818025,218.76,218.73,2.2865]
[1734297655111,6.30818025,218.74,218.69,5.45887989]
[1734297656197,6.30818025,218.74,218.71,2.2866]
[1734297657107,8.58818025,218.74,218.71,2.2866]
[1734297658503,6.30818025,218.72,218.63,0.3272]
[1734297658700,6.30818025,218.72,218.63,6.63538025]
[1734297658899,6.30818025,218.72,218.69,2.2869]
[1734297660209,2.28,218.74,218.67,5.47454624]
[1734297660403,6.30818025,218.73,218.67,5.47454624]
[1734297660604,2.28,218.74,218.67,5.47454624]
[1734297660803,2.28,218.76,218.75,2.2862]
[1734297661011,2.28,218.77,218.75,2.2862]
[1734297661313,2.28,218.77,218.7,6.30818025]
[1734297661504,2.28,218.77,218.74,2.2864]
[1734297661908,6.30818025,218.76,218.73,2.2864]
[1734297662201,6.30818025,218.76,218.68,6.30818025]
[1734297663406,6.30818025,218.76,218.74,2.2864]
[1734297665703,2.28,218.77,218.75,2.2863]
[1734297665906,50.96911226,218.85,218.69,1.4644]
[1734297666118,3.7411,218.87,218.76,6.30818025]
[1734297666315,6.30818025,218.84,218.76,6.30818025]
[1734297667315,6.30818025,218.84,218.81,2.2857]
[1734297668110,2.24,218.87,218.83,2.2855]
[1734297668606,6.30818025,218.88,218.81,2.2856]
[1734297668802,8.54818025,218.88,218.79,6.30818025]
[1734297669203,6.30818025,218.89,218.85,2.2852]
[1734297669407,6.30818025,218.87,218.81,6.30818025]
[1734297669807,2.9878,218.94,218.81,6.30818025]
[1734297670112,6.30818025,218.9,218.81,6.30818025]
[1734297670313,6.30818025,218.9,218.86,2.2851]
[1734297671116,6.30818025,218.88,218.86,2.2851]
[1734297672714,6.30818025,218.89,218.86,2.2851]
[1734297673014,6.30818025,218.87,218.84,2.2853]
[1734297673216,6.30818025,218.85,218.78,5.54371014]
[1734297673410,6.30818025,218.8,218.73,12.62297024]
[1734297673609,6.30818025,218.8,218.73,6.30818025]
[1734297674307,6.30818025,218.8,218.78,2.286]
[1734297676107,6.30818025,218.82,218.79,2.2858]
[1734297676413,6.30818025,218.84,218.77,6.30818025]
[1734297676609,6.30818025,218.84,218.82,2.2855]
[1734297676911,6.30818025,218.84,218.77,6.30818025]
[1734297677308,6.30818025,218.84,218.8,2.2857]
[1734297678217,6.30818025,218.84,218.81,2.2857]
[1734297679215,6.30818025,218.82,218.78,2.286]
[1734297679415,6.30818025,218.82,218.73,8.54818025]
[1734297680309,6.30818025,218.82,218.78,2.286]
[1734297681619,6.30818025,218.8,218.78,2.286]
[1734297682316,6.30818025,218.8,218.76,2.2861]
[1734297683020,6.30818025,218.8,218.73,6.30818025]
[1734297683220,6.30818025,218.8,218.77,2.286]
[1734297685323,6.30818025,218.82,218.77,2.286]
[1734297686519,6.30818025,218.82,218.78,2.286]
[1734297689925,7.83398025,218.84,218.79,2.2859]
[1734297690524,6.30818025,218.84,218.79,2.2859]
[1734297691427,1.4857,218.9,218.83,2.2854]
[1734297691733,6.30818025,218.87,218.83,2.2854]
[1734297692027,6.30818025,218.87,218.85,2.2853]
[1734297693227,8.54818025,218.87,218.85,2.2853]
[1734297693626,8.54818025,218.87,218.84,2.2854]
[1734297694630,8.50818025,218.87,218.84,2.2854]
[1734297695333,8.50818025,218.87,218.82,2.2855]
[1734297695630,8.50818025,218.87,218.79,6.30818025]
[1734297696828,8.50818025,218.87,218.82,2.2856]
[1734297697029,6.30818025,218.87,218.82,2.2856]
[1734297697229,1.4909,218.92,218.81,6.30818025]
[1734297697434,1.4909,218.92,218.77,2.24]
[1734297697435,7.79908025,218.92,218.87,2.285]
[1734297697635,9.99908025,218.92,218.87,2.285]
[1734297698031,7.79908025,218.92,218.85,6.30818025]
[1734297698231,7.79908025,218.92,218.88,2.2849]
[1734297698431,6.30818025,218.92,218.88,2.2849]
[1734297701232,50.94935337,218.93,218.9,2.2847]
[1734297702031,50.94935337,218.93,218.85,6.30818025]
[1734297702231,6.30818025,218.9,218.8,5.52412531]
[1734297702435,6.30818025,218.87,218.82,2.2]
[1734297702732,6.30818025,218.85,218.8,5.52412531]
[1734297703135,6.30818025,218.83,218.8,7.80982531]
[1734297705035,6.30818025,218.83,218.75,2.2]
[1734297705241,8.50818025,218.83,218.78,2.2859]
[1734297706736,6.30818025,218.81,218.76,5.51914255]
[1734297707138,6.30818025,218.81,218.73,2.9618]
[1734297707345,6.30818025,218.81,218.74,2.2863]
[1734297708046,6.30818025,218.79,218.73,2.2865]
[1734297708245,2.2,218.78,218.71,6.30818025]
[1734297708445,6.30818025,218.77,218.7,6.30818025]
[1734297709652,6.30818025,218.77,218.7,8.59498025]
[1734297710249,6.30818025,218.77,218.7,14.10815729]
[1734297712256,6.30818025,218.77,218.71,2.2867]
[1734297713854,6.30818025,218.75,218.71,2.2867]
[1734297714549,6.30818025,218.73,218.69,2.2869]
[1734297714850,8.50818025,218.73,218.69,2.2869]
[1734297716458,6.30818025,218.71,218.68,0.25611]
[1734297717558,6.30818025,218.71,218.66,5.48128998]
[1734297717758,8.50818025,218.73,218.66,5.48128998]
[1734297718154,6.30818025,218.71,218.65,6.30818025]
[1734297718357,6.30818025,218.71,218.64,6.30818025]
[1734297718753,6.30818025,218.71,218.66,6.30818025]
[1734297719056,6.30818025,218.71,218.66,8.59528025]
[1734297720257,6.30818025,218.71,218.67,2.2871]
[1734297721663,6.30818025,218.71,218.66,11.87947601]
[1734297721864,6.30818025,218.71,218.62,2.9817]
[1734297722060,6.30818025,218.71,218.64,6.30818025]
[1734297722959,8.59488025,218.71,218.65,2.2873]
[1734297723966,6.30818025,218.71,218.65,2.2873]
[1734297725167,8.59488025,218.71,218.65,2.2873]
[1734297725363,6.30818025,218.69,218.59,0.38418]
[1734297725663,6.30818025,218.67,218.6,6.30818025]
[1734297725864,2.16,218.66,218.6,6.30818025]
[1734297726460,2.16,218.66,218.62,2.2876]
[1734297727261,2.16,218.66,218.59,0.38418]
[1734297727262,6.30818025,218.63,218.59,0.38418]
[1734297727458,6.30818025,218.61,218.59,0.38418]
[1734297727766,2.16,218.6,218.54,2.2885]
[1734297727967,6.30818025,218.58,218.54,2.2885]
[1734297728165,6.30818025,218.58,218.49,2.8518]
[1734297728465,6.30818025,218.56,218.52,5.55228376]
[1734297728664,6.30818025,218.54,218.39,25.25915996]
[1734297728866,6.30818025,218.5,218.46,2.2893]
[1734297729172,6.30818025,218.48,218.38,3.0134]
[1734297729364,6.30818025,218.46,218.38,3.0134]
[1734297729571,6.30818025,218.46,218.4,5.36175714]
[1734297729764,6.30818025,218.44,218.4,5.36175714]
[1734297729963,2.16,218.43,218.4,5.36175714]
[1734297730170,6.30818025,218.38,218.27,2.2913]
[1734297730467,6.30818025,218.36,218.21,3.0195]
[1734297730672,6.30818025,218.36,218.28,2.2912]
[1734297731169,6.30818025,218.34,218.25,11.77161072]
[1734297731368,6.30818025,218.34,218.25,7.75493047]
[1734297731766,6.30818025,218.32,218.25,7.75493047]
[1734297731969,2.34,218.32,218.25,5.46343047]
[1734297732361,2.34,218.41,218.25,5.46343047]
[1734297732668,2.34,218.4,218.25,17.69690264]
[1734297733366,2.34,218.4,218.28,9.89347217]
[1734297733567,2.34,218.4,218.31,9.89347217]
[1734297733767,2.34,218.45,218.34,9.89347217]
[1734297734164,2.34,218.49,218.37,9.89347217]
[1734297734363,2.34,218.49,218.37,2.34]
[1734297734569,9.89347217,218.48,218.35,2.34]
[1734297734861,9.89347217,218.48,218.36,2.2903]
[1734297735064,2.34,218.49,218.32,6.7927]
[1734297735263,9.89347217,218.45,218.32,6.7927]
[1734297735466,9.89347217,218.45,218.32,4.4527]